bitfinex/quotes_SOLUSD_20220228
["timestamp","ask_amount","ask_price","bid_price","bid_amount"]
[1646037557340,85.7,89.417,89.354,16.30984211]
[1646037557541,85.7,89.428,89.361,3.07763901]
[1646037557741,85.7,89.455,89.362,10.474]
[1646037557942,85.7,89.455,89.362,13.22078921]
[1646037558241,2.9173621,89.454,89.363,2.74678921]
[1646037558441,88.6173621,89.454,89.364,10.473]
[1646037558842,88.6173621,89.454,89.38,16.7837]
[1646037559041,88.6173621,89.454,89.382,53.99946007]
[1646037559243,85.7,89.454,89.383,8.88883226]
[1646037559442,86.6521912,89.456,89.39,16.01]
[1646037559645,86.6521912,89.456,89.391,8.8039129]
[1646037559842,86.6521912,89.456,89.392,4.473]
[1646037560043,86.6521912,89.456,89.41,16.7775]
[1646037560344,2.72588384,89.455,89.411,9.03563431]
[1646037560747,2.72588384,89.455,89.412,2.74678921]
[1646037561047,88.42588384,89.455,89.413,6.0]
[1646037561548,88.42588384,89.455,89.42,16.7775]
[1646037562149,88.42588384,89.455,89.414,2.74678921]
[1646037562346,88.42588384,89.455,89.415,6.0]
[1646037562548,88.42588384,89.455,89.414,2.74678921]
[1646037563247,88.42588384,89.455,89.41,16.7794]
[1646037563448,88.42588384,89.455,89.411,6.0]
[1646037563652,88.42588384,89.455,89.41,16.7794]
[1646037563950,88.42588384,89.455,89.411,6.0]
[1646037564353,88.42588384,89.455,89.41,16.7794]
[1646037564951,88.42588384,89.455,89.411,6.0]
[1646037565875,88.42588384,89.455,89.41,16.7794]
[1646037566479,88.42588384,89.455,89.411,6.0]
[1646037566880,88.42588384,89.455,89.412,59.61198022]
[1646037567382,88.42588384,89.455,89.41,16.7794]
[1646037567776,88.42588384,89.455,89.411,6.0]
[1646037567975,88.42588384,89.455,89.41,16.7794]
[1646037568376,88.42588384,89.455,89.411,64.80426328]
[1646037568779,88.42588384,89.455,89.411,58.80426328]
[1646037569278,88.42588384,89.455,89.41,16.7794]
[1646037569477,88.42588384,89.455,89.411,6.0]
[1646037569680,85.7,89.455,89.41,16.7794]
[1646037569881,85.7,89.485,89.412,2.74678921]
[1646037570079,133.5007,89.487,89.412,2.74678921]
[1646037570279,133.5007,89.487,89.42,16.7772]
[1646037570779,3.33991331,89.486,89.421,54.97769903]
[1646037571379,3.33991331,89.486,89.422,2.74678921]
[1646037572182,3.33991331,89.486,89.423,6.0]
[1646037572486,3.33991331,89.486,89.422,2.74678921]
[1646037572881,3.33991331,89.486,89.423,6.0]
[1646037573086,89.03991331,89.486,89.423,6.0]
[1646037573886,89.03991331,89.486,89.422,2.74678921]
[1646037574287,89.03991331,89.486,89.43,16.7753]
[1646037574687,89.03991331,89.486,89.431,2.74678921]
[1646037574886,89.03991331,89.486,89.43,16.7753]
[1646037575886,85.7,89.486,89.431,46.90701561]
[1646037576087,85.7,89.486,89.44,16.7719]
[1646037576287,85.7,89.514,89.441,2.26852854]
[1646037576687,85.7,89.514,89.441,2.74678921]
[1646037576893,2.38661061,89.513,89.442,2.74678921]
[1646037577189,88.08661061,89.513,89.443,6.0]
[1646037577490,88.08661061,89.513,89.45,16.7714]
[1646037577888,88.08661061,89.513,89.451,6.0]
[1646037578889,1.38629302,89.512,89.451,6.0]
[1646037579291,1.38629302,89.512,89.432,6.0]
[1646037579491,24.9332,89.511,89.432,6.0]
[1646037579791,1.62685662,89.51,89.432,6.0]
[1646037579993,1.3717189,89.509,89.433,2.74678921]
[1646037580194,1.41770388,89.508,89.434,6.0]
[1646037580393,1.41770388,89.508,89.44,16.7738]
[1646037580592,1.41770388,89.508,89.441,6.0]
[1646037581994,1.41770388,89.508,89.44,16.7738]
[1646037582199,1.64859193,89.507,89.44,16.7738]
[1646037582394,1.83339725,89.506,89.42,36.68208921]
[1646037582599,111.7,89.499,89.31,7.0]
[1646037582899,2.4642287,89.409,89.31,7.0]
[1646037583094,111.7,89.399,89.31,7.0]
[1646037583296,1.95747812,89.396,89.31,7.0]
[1646037583497,118.25761115,89.395,89.311,59.08118164]
[1646037583696,111.7,89.379,89.311,59.08118164]
[1646037583893,111.7,89.379,89.31,7.0]
[1646037584095,2.05352431,89.378,89.31,7.0]
[1646037584294,87.75352431,89.378,89.31,7.0]
[1646037584496,2.04065034,89.377,89.311,6.0]
[1646037584696,85.7,89.377,89.311,6.0]
[1646037584897,1.94226645,89.389,89.312,46.61239665]
[1646037585101,4.476,89.388,89.312,46.61239665]
[1646037585300,85.7,89.389,89.316,2.22430666]
[1646037585601,85.7,89.389,89.315,112.6]
[1646037585796,85.7,89.389,89.312,62.98379665]
[1646037586197,2.02307495,89.388,89.312,62.98379665]
[1646037586396,1.87723357,89.387,89.312,62.98379665]
[1646037586695,2.02289398,89.386,89.312,62.98379665]
[1646037586897,2.02289398,89.386,89.313,6.0]
[1646037587296,1.87228947,89.385,89.313,6.0]
[1646037587497,1.96512836,89.384,89.313,6.0]
[1646037587697,1.92718746,89.383,89.313,6.0]
[1646037587897,1.65782211,89.382,89.313,6.0]
[1646037588099,16.01,89.38,89.313,6.0]
[1646037588299,1.80736869,89.379,89.313,6.0]
[1646037588501,1.87749963,89.378,89.306,17.042]
[1646037588698,1.87749963,89.378,89.28,16.7975]
[1646037588898,2.03251745,89.376,89.281,6.0]
[1646037589299,85.7,89.376,89.281,6.0]
[1646037589498,1.64609009,89.375,89.282,60.86806711]
[1646037589697,1.84130181,89.374,89.283,6.0]
[1646037589899,1.89591366,89.373,89.283,6.0]
[1646037590100,87.59591366,89.373,89.283,6.0]
[1646037590299,1.55604963,89.372,89.283,6.0]
[1646037590601,1.89449187,89.371,89.283,6.0]
[1646037590801,85.7,89.371,89.29,16.7984]
[1646037591001,2.04897977,89.375,89.291,6.0]
[1646037591203,2.11068227,89.374,89.291,6.0]
[1646037593104,2.11068227,89.374,89.3,16.7965]
[1646037593301,2.11068227,89.374,89.302,45.38918093]
[1646037593302,1.79652449,89.374,89.302,45.38918093]
[1646037593703,85.7,89.375,89.302,45.38918093]
[1646037593902,1.75464058,89.378,89.303,6.0]
[1646037594103,87.45464058,89.378,89.304,111.7]
[1646037594302,87.45464058,89.378,89.31,16.7947]
[1646037594303,85.7,89.378,89.31,16.7947]
[1646037594504,1.96717505,89.4,89.312,111.7]
[1646037594702,1.96717505,89.4,89.313,10.476]
[1646037595003,1.96717505,89.4,89.314,6.0]
[1646037595203,1.96717505,89.4,89.316,55.48083137]
[1646037595402,1.96717505,89.4,89.317,10.476]
[1646037595606,1.96717505,89.4,89.32,16.7919]
[1646037595802,1.96717505,89.4,89.321,10.476]
[1646037596003,1.58184356,89.399,89.321,10.476]
[1646037597406,1.64158631,89.389,89.321,6.0]
[1646037597604,1.9873285,89.399,89.317,6.0]
[1646037597804,2.09855915,89.389,89.317,6.0]
[1646037598209,87.79855915,89.389,89.317,6.0]
[1646037598406,1.79498219,89.388,89.317,6.0]
[1646037598607,1.89948987,89.387,89.317,10.476]
[1646037598808,1.65076502,89.386,89.317,10.476]
[1646037599008,1.53116296,89.385,89.317,10.476]
[1646037599210,1.63424923,89.384,89.317,4.476]
[1646037599414,16.01,89.38,89.316,55.48083137]
[1646037599610,1.80647861,89.379,89.316,55.48083137]
[1646037599810,1.53757092,89.378,89.316,55.48083137]
[1646037600012,2.0461049,89.377,89.316,55.48083137]
[1646037600211,2.06448334,89.376,89.316,55.48083137]
[1646037600412,1.87187182,89.375,89.316,55.48083137]
[1646037600613,1.63110591,89.374,89.316,55.48083137]
[1646037600815,1.82572862,89.373,89.316,55.48083137]
[1646037601014,1.84756369,89.372,89.316,55.48083137]
[1646037601214,1.52164552,89.371,89.316,55.48083137]
[1646037601413,85.7,89.371,89.316,55.48083137]
[1646037601612,1.73353353,89.37,89.316,55.48083137]
[1646037601816,2.00171903,89.369,89.316,55.48083137]
[1646037602012,1.57128692,89.368,89.316,55.48083137]
[1646037602213,1.65910476,89.367,89.316,55.48083137]
[1646037602413,1.59614511,89.366,89.316,55.48083137]
[1646037602613,85.7,89.366,89.316,53.87097137]
[1646037602812,85.7,89.366,89.32,16.7936]
[1646037603018,85.7,89.387,89.321,10.477]
[1646037603217,85.7,89.387,89.321,13.22378921]
[1646037603420,85.7,89.387,89.321,10.477]
[1646037603618,85.7,89.387,89.322,2.74678921]
[1646037603818,85.7,89.387,89.323,10.476]
[1646037604219,85.7,89.387,89.324,2.74678921]
[1646037604419,85.7,89.387,89.325,6.0]
[1646037604918,85.7,89.387,89.326,2.74678921]
[1646037605119,85.7,89.387,89.327,6.0]
[1646037605321,1.66954812,89.419,89.333,47.45733042]
[1646037605519,1.73677069,89.436,89.341,178.73]
[1646037605719,2.10122145,89.453,89.343,111.7]
[1646037605923,2.10122145,89.453,89.355,67.03]
[1646037606121,2.10122145,89.453,89.356,59.76646019]
[1646037606321,2.10122145,89.453,89.356,62.5132494]
[1646037606521,2.10122145,89.453,89.36,16.7853]
[1646037606734,16.01,89.45,89.36,16.7853]
[1646037606934,6.55903131,89.449,89.356,53.76646019]
[1646037607334,111.7,89.448,89.356,53.76646019]
[1646037607535,16.7898,89.44,89.357,2.74678921]
[1646037607741,2.08503131,89.449,89.357,2.74678921]
[1646037608138,4.474,89.448,89.357,2.74678921]
[1646037608339,6.55903131,89.449,89.357,2.74678921]
[1646037608540,111.7,89.448,89.357,2.74678921]
[1646037608737,4.474,89.447,89.357,2.74678921]
[1646037608938,2.08503131,89.449,89.357,2.74678921]
[1646037609338,2.08503131,89.449,89.356,53.76646019]
[1646037609339,113.4006433,89.439,89.356,53.76646019]
[1646037609537,111.7,89.437,89.356,53.76646019]
[1646037609737,6.4770578,89.436,89.356,53.76646019]
[1646037609941,2.0030578,89.436,89.356,53.76646019]
[1646037610340,2.0030578,89.436,89.356,56.5132494]
[1646037611640,2.0030578,89.436,89.356,53.76646019]
[1646037611841,2.0030578,89.436,89.357,2.74678921]
[1646037612243,2.0030578,89.436,89.358,6.0]
[1646037612640,2.0030578,89.436,89.359,2.74678921]
[1646037613242,2.0030578,89.436,89.36,6.0]
[1646037613543,2.0030578,89.436,89.361,2.74678921]
[1646037613745,2.0030578,89.436,89.362,6.0]
[1646037613943,2.0030578,89.436,89.361,2.74678921]
[1646037614142,2.0030578,89.436,89.363,2.74678921]
[1646037614344,2.0030578,89.436,89.364,6.0]
[1646037614745,2.0030578,89.436,89.365,2.74678921]
[1646037614946,2.0030578,89.436,89.366,6.0]
[1646037615345,2.0030578,89.436,89.367,2.74678921]
[1646037615546,2.0030578,89.436,89.371,49.05768534]
[1646037615745,2.0030578,89.436,89.372,6.0]
[1646037615945,2.0030578,89.436,89.372,2.74678921]
[1646037618954,2.0030578,89.436,89.373,6.0]
[1646037620050,2.0030578,89.436,89.374,2.74678921]
[1646037620253,2.0030578,89.436,89.375,6.0]
[1646037621354,2.0030578,89.436,89.372,6.0]
[1646037621555,2.0030578,89.436,89.376,2.74678921]
[1646037622052,2.0030578,89.436,89.372,6.0]
[1646037622454,2.0030578,89.436,89.373,2.74678921]
[1646037622653,2.0030578,89.436,89.374,6.0]
[1646037623253,2.0030578,89.436,89.375,2.74678921]
[1646037623551,2.0030578,89.436,89.371,49.05768534]
[1646037624254,4.474,89.435,89.371,49.05768534]
[1646037624653,2.0030578,89.436,89.371,49.05768534]
[1646037624853,2.0030578,89.436,89.371,51.80447455]
[1646037625255,2.0030578,89.436,89.371,49.05768534]
[1646037627861,2.0030578,89.436,89.371,51.80447455]
[1646037629463,2.0030578,89.436,89.372,6.0]
[1646037629862,2.0030578,89.436,89.373,2.74678921]
[1646037630160,23.2453,89.439,89.38,16.7828]
[1646037630360,1.75994828,89.453,89.38,16.7828]
[1646037630560,1.75994828,89.453,89.381,2.74678921]
[1646037631560,1.75994828,89.453,89.382,6.0]
[1646037631861,1.75994828,89.453,89.383,2.74678921]
[1646037632062,1.75994828,89.453,89.385,59.85476188]
[1646037632263,1.75994828,89.453,89.386,6.0]
[1646037632461,1.75994828,89.453,89.386,8.74678921]
[1646037632861,1.75994828,89.453,89.387,2.74678921]
[1646037633062,1.75994828,89.453,89.388,6.0]
[1646037633463,1.75994828,89.453,89.389,2.74678921]
[1646037633665,1.75994828,89.453,89.39,6.0]
[1646037634164,1.75994828,89.453,89.385,59.85476188]
[1646037634464,1.75994828,89.453,89.377,16.8894]
[1646037634666,17.70609865,89.45,89.361,2.74678921]
[1646037634865,111.7,89.449,89.361,2.74678921]
[1646037635064,1.75453186,89.448,89.361,2.74678921]
[1646037635465,4.474,89.447,89.362,48.97630279]
[1646037635665,4.474,89.447,89.342,24.4519]
[1646037635666,113.52777263,89.439,89.341,2.74678921]
[1646037635864,16.01,89.43,89.341,2.74678921]
[1646037636065,1.741782,89.428,89.341,19.85008921]
[1646037636266,4.475,89.427,89.341,19.85008921]
[1646037636669,4.475,89.427,89.342,54.28660577]
[1646037636869,4.475,89.427,89.315,11.69155017]
[1646037636870,4.475,89.427,89.327,2.74678921]
[1646037637067,6.05806834,89.427,89.327,19.81648921]
[1646037637270,111.7,89.426,89.327,2.74678921]
[1646037637465,6.40877154,89.425,89.32,16.793]
[1646037637669,1.75717951,89.409,89.32,16.793]
[1646037637865,1.96141739,89.406,89.322,49.58945303]
[1646037639368,1.96141739,89.406,89.323,2.74678921]
[1646037639773,4.476,89.405,89.323,2.74678921]
[1646037639973,4.476,89.405,89.321,4.476]
[1646037640597,4.476,89.405,89.322,59.45962537]
[1646037641497,128.4969,89.4,89.322,59.45962537]
[1646037641696,1.67967984,89.399,89.322,59.45962537]
[1646037642299,1.67967984,89.399,89.321,4.476]
[1646037643198,1.94520255,89.389,89.322,48.45708242]
[1646037643598,1.94520255,89.389,89.323,2.74678921]
[1646037645000,1.85994215,89.395,89.323,2.74678921]
[1646037645402,1.85994215,89.395,89.324,6.0]
[1646037645600,1.85994215,89.395,89.323,2.74678921]
[1646037645800,1.85994215,89.395,89.325,2.74678921]
[1646037646601,113.55994215,89.395,89.322,48.45708242]
[1646037646800,1.6742555,89.394,89.322,48.45708242]
[1646037647200,1.6742555,89.394,89.321,4.476]
[1646037648010,1.6742555,89.394,89.322,2.74678921]
[1646037648212,1.6742555,89.394,89.323,51.01269307]
[1646037649310,1.6742555,89.394,89.322,2.74678921]
[1646037649519,1.6742555,89.394,89.321,4.476]
[1646037650120,1.6742555,89.394,89.322,2.74678921]
[1646037650725,4.476,89.393,89.322,2.74678921]
[1646037650918,13.386,89.393,89.322,2.74678921]
[1646037651122,2.09219408,89.392,89.322,2.74678921]
[1646037651319,16.01,89.39,89.322,2.74678921]
[1646037651519,6.38751369,89.389,89.321,4.476]
[1646037654425,6.38751369,89.389,89.321,7.22278921]
[1646037654624,1.91151369,89.389,89.321,7.22278921]
[1646037655224,1.98586069,89.395,89.321,7.22278921]
[1646037656023,1.98586069,89.395,89.322,6.0]
[1646037656427,1.98586069,89.395,89.323,2.74678921]
[1646037657430,1.98586069,89.395,89.324,6.0]
[1646037657631,1.98586069,89.395,89.33,16.7922]
[1646037657827,1.98586069,89.395,89.331,50.25391348]
[1646037658229,113.68586069,89.395,89.321,4.476]
[1646037658533,1.75050561,89.394,89.321,4.476]
[1646037659146,16.7986,89.39,89.321,4.476]
[1646037659348,1.85905712,89.388,89.321,4.476]
[1646037659646,4.476,89.387,89.321,4.476]
[1646037660251,23.5122,89.386,89.321,4.476]
[1646037660447,1.52513416,89.385,89.322,53.92316154]
[1646037660649,1.88145665,89.379,89.322,53.92316154]
[1646037660947,1.54255228,89.385,89.305,26.36416474]
[1646037661957,1.54255228,89.385,89.306,48.45496157]
[1646037662548,113.24255228,89.385,89.306,48.45496157]
[1646037662751,1.66634384,89.384,89.306,48.45496157]
[1646037662953,1.66634384,89.384,89.28,16.8001]
[1646037663751,1.92807946,89.379,89.29,16.7997]
[1646037663951,1.92807946,89.379,89.297,54.72122961]
[1646037666152,1.92807946,89.379,89.3,16.7979]
[1646037666353,23.5122,89.386,89.301,6.0]
[1646037666555,23.5122,89.386,89.302,4.477]
[1646037666556,2.04252286,89.385,89.302,4.477]
[1646037666755,2.04252286,89.385,89.303,6.0]
[1646037666959,2.04252286,89.385,89.304,4.477]
[1646037667156,2.04252286,89.385,89.305,6.0]
[1646037667354,2.04252286,89.385,89.306,4.477]
[1646037668155,2.04252286,89.385,89.31,16.7955]
[1646037668355,2.04252286,89.385,89.312,56.64815499]
[1646037668554,2.04252286,89.385,89.313,4.476]
[1646037669255,1.91050015,89.395,89.32,16.794]
[1646037669854,1.91050015,89.395,89.321,6.0]
[1646037670655,1.91050015,89.395,89.322,7.22278921]
[1646037670856,1.91050015,89.395,89.323,6.0]
[1646037671059,1.91050015,89.395,89.331,60.72746659]
[1646037671456,22.8249,89.408,89.332,4.476]
[1646037671656,22.8249,89.408,89.332,2.74678921]
[1646037671858,22.8249,89.408,89.333,13.22178921]
[1646037672156,3.6403183,89.426,89.341,67.03]
[1646037672357,3.6403183,89.426,89.35,127.71]
[1646037672560,3.6403183,89.426,89.351,62.4095201]
[1646037672961,3.6403183,89.426,89.351,65.15630931]
[1646037673158,3.6403183,89.426,89.352,2.74678921]
[1646037673357,3.6403183,89.426,89.353,6.0]
[1646037673564,3.6403183,89.426,89.37,16.7847]
[1646037673760,3.6403183,89.426,89.371,59.65759773]
[1646037674164,3.6403183,89.426,89.355,4.474]
[1646037674360,3.6403183,89.426,89.35,16.4112]
[1646037674560,3.6403183,89.426,89.337,4.474]
[1646037674762,3.6403183,89.426,89.338,6.0]
[1646037674967,3.6403183,89.426,89.338,8.74678921]
[1646037675162,3.6403183,89.426,89.339,60.61328012]
[1646037675359,3.6403183,89.426,89.34,10.475]
[1646037675562,3.6403183,89.426,89.34,13.22178921]
[1646037675760,3.6403183,89.426,89.34,38.00317926]
[1646037675961,3.6403183,89.426,89.36,16.7855]
[1646037676260,3.6403183,89.426,89.361,51.897406]
[1646037676459,3.6403183,89.426,89.361,54.64419521]
[1646037676760,3.6403183,89.426,89.362,2.74678921]
[1646037677359,3.6403183,89.426,89.363,6.0]
[1646037677764,3.6403183,89.426,89.364,2.74678921]
[1646037677961,3.6403183,89.426,89.365,6.0]
[1646037678267,3.6403183,89.426,89.366,2.74678921]
[1646037678462,3.6403183,89.426,89.367,6.0]
[1646037678760,3.6403183,89.426,89.37,16.7848]
[1646037679161,3.6403183,89.426,89.371,2.74678921]
[1646037679361,3.6403183,89.426,89.372,6.0]
[1646037679761,3.6403183,89.426,89.373,2.74678921]
[1646037679964,3.6403183,89.426,89.375,43.58383488]
[1646037680163,3.6403183,89.426,89.376,6.0]
[1646037680361,3.6403183,89.426,89.38,16.7827]
[1646037680561,3.6403183,89.426,89.381,6.0]
[1646037680962,3.6403183,89.426,89.381,8.74678921]
[1646037681163,3.6403183,89.426,89.382,2.74678921]
[1646037681361,3.6403183,89.426,89.383,6.0]
[1646037681962,23.8055,89.469,89.383,6.0]
[1646037681963,1.9821564,89.468,89.386,178.73]
[1646037682165,3.07719838,89.517,89.385,105.0]
[1646037682166,1.76283172,89.496,89.393,67.03]
[1646037682367,1.76283172,89.496,89.398,178.73]
[1646037682565,1.76283172,89.496,89.4,16.01]
[1646037682764,1.76283172,89.496,89.401,6.0]
[1646037683167,1.76283172,89.496,89.402,2.74678921]
[1646037683373,1.76283172,89.496,89.403,6.0]
[1646037683767,1.76283172,89.496,89.404,2.74678921]
[1646037683968,1.76283172,89.496,89.405,6.0]
[1646037684172,1.76283172,89.496,89.406,59.49868894]
[1646037684368,1.76283172,89.496,89.407,6.0]
[1646037684568,1.76283172,89.496,89.421,55.26301923]
[1646037685391,1.76283172,89.496,89.42,16.7747]
[1646037685568,113.46283172,89.496,89.407,2.74678921]
[1646037685773,2.07891412,89.495,89.407,2.74678921]
[1646037685972,4.471,89.494,89.408,2.74678921]
[1646037686571,16.7801,89.49,89.39,18.75678921]
[1646037686771,47.7835,89.497,89.388,22.6248]
[1646037686772,1.55609196,89.488,89.388,22.6248]
[1646037686972,4.472,89.487,89.388,22.6248]
[1646037687271,4.472,89.487,89.396,2.74678921]
[1646037687469,111.7,89.485,89.396,50.18589566]
[1646037687670,1.92029566,89.484,89.396,47.43910645]
[1646037687870,16.7828,89.48,89.396,50.18589566]
[1646037688070,6.5147734,89.479,89.396,50.18589566]
[1646037688274,4.472,89.479,89.388,22.6248]
[1646037688477,4.472,89.484,89.386,2.74678921]
[1646037688672,111.7,89.483,89.386,2.74678921]
[1646037688872,111.7,89.481,89.386,2.74678921]
[1646037689072,111.7,89.479,89.386,2.74678921]
[1646037689272,1.7250727,89.478,89.387,50.7319448]
[1646037689475,16.7838,89.47,89.387,50.7319448]
[1646037689672,1.74266751,89.469,89.387,50.7319448]
[1646037689873,1.82778995,89.468,89.388,2.74678921]
[1646037690474,1.82778995,89.468,89.389,6.0]
[1646037690674,1.82778995,89.468,89.39,16.781]
[1646037690875,1.82778995,89.468,89.391,6.0]
[1646037691177,1.82778995,89.468,89.391,8.74678921]
[1646037691374,1.82778995,89.468,89.392,2.74678921]
[1646037691574,1.82778995,89.468,89.393,6.0]
[1646037692074,1.82778995,89.468,89.394,2.74678921]
[1646037692273,1.82778995,89.468,89.395,6.0]
[1646037692474,1.82778995,89.468,89.4,16.7794]
[1646037692673,1.94148217,89.496,89.402,44.7294474]
[1646037692898,1.60644975,89.494,89.403,6.0]
[1646037693276,1.60644975,89.494,89.404,2.74678921]
[1646037693475,1.60644975,89.494,89.405,6.0]
[1646037693875,1.60644975,89.494,89.406,2.74678921]
[1646037694074,1.60644975,89.494,89.407,6.0]
[1646037694475,1.60644975,89.494,89.42,16.7747]
[1646037694675,1.60644975,89.494,89.421,49.25269343]
[1646037694876,1.60644975,89.494,89.421,51.99948264]
[1646037695475,1.60644975,89.494,89.422,2.74678921]
[1646037695676,1.60644975,89.494,89.43,16.7738]
[1646037695976,1.60644975,89.494,89.431,2.74678921]
[1646037696376,1.60644975,89.494,89.432,6.0]
[1646037698075,1.60644975,89.494,89.421,43.25269343]
[1646037698076,1.60644975,89.494,89.406,16.5941]
[1646037698277,111.7,89.489,89.35,16.01]
[1646037698477,111.7,89.487,89.328,48.2105]
[1646037698681,111.7,89.449,89.34,21.2156]
[1646037698878,1.81751406,89.446,89.34,21.2156]
[1646037699177,4.474,89.445,89.341,56.53568492]
[1646037699378,111.7,89.439,89.341,56.53568492]
[1646037699580,2.10850422,89.438,89.341,56.53568492]
[1646037699979,23.7853,89.437,89.341,56.53568492]
[1646037700178,1.95918703,89.436,89.341,56.53568492]
[1646037700578,1.95918703,89.436,89.35,16.788]
[1646037705482,111.7,89.429,89.341,56.53568492]
[1646037705684,1.85312515,89.428,89.341,56.53568492]
[1646037706984,111.7,89.419,89.341,56.53568492]
[1646037707185,1.9576678,89.418,89.34,16.7406]
[1646037707385,1.9576678,89.418,89.323,16.393]
[1646037707586,1.85396388,89.415,89.323,16.393]
[1646037707783,4.475,89.414,89.323,16.393]
[1646037707988,1.90197229,89.398,89.323,16.393]
[1646037708189,1.85866284,89.395,89.324,56.32646464]
[1646037708390,4.476,89.394,89.324,56.32646464]
[1646037709592,111.7,89.394,89.3,16.7975]
[1646037709792,111.7,89.389,89.289,24.7161]
[1646037709990,111.7,89.387,89.289,24.7161]
[1646037710194,111.7,89.385,89.289,24.7161]
[1646037710390,111.7,89.383,89.268,24.7009832]
[1646037710589,111.7,89.369,89.287,59.874346]
[1646037710791,16.01,89.37,89.287,59.874346]
[1646037710792,111.7,89.349,89.287,59.874346]
[1646037710994,2.01542578,89.349,89.287,59.874346]
[1646037713496,2.01542578,89.349,89.273,16.5942]
[1646037713696,25.29372578,89.349,89.273,16.5942]
[1646037713896,1.9600773,89.348,89.273,16.5942]
[1646037714500,1.9600773,89.348,89.274,54.64080606]
[1646037720611,1.9600773,89.348,89.28,16.8016]
[1646037723215,1.9600773,89.348,89.274,54.64080606]
[1646037724418,113.6600773,89.348,89.273,16.5942]
[1646037724619,113.37971789,89.339,89.273,16.5942]
[1646037724818,1.59366553,89.338,89.25,16.8067]
[1646037725021,24.94,89.337,89.25,16.8067]
[1646037725218,1.68579531,89.336,89.243,24.672]
[1646037725419,4.479,89.335,89.241,17.1151]
[1646037725620,111.7,89.329,89.241,17.1151]
[1646037725820,111.7,89.327,89.241,17.1151]
[1646037726018,111.7,89.325,89.241,17.1151]
[1646037726224,111.7,89.323,89.241,17.1151]
[1646037726422,111.7,89.309,89.198,50.34857501]
[1646037726623,111.7,89.279,89.198,50.34857501]
[1646037726826,48.12205574,89.308,89.198,50.34857501]
[1646037726827,111.7,89.269,89.198,50.34857501]
[1646037727022,111.7,89.267,89.178,112.6]
[1646037727222,6.52205141,89.266,89.178,112.6]
[1646037727423,2.03905141,89.266,89.178,112.6]
[1646037727626,4.483,89.265,89.176,16.5963]
[1646037727823,111.7,89.259,89.159,23.5374078]
[1646037728025,111.7,89.249,89.152,16.5687]
[1646037728227,1.7398969,89.248,89.153,23.5374078]
[1646037728524,1.7398969,89.248,89.144,112.6]
[1646037728525,4.484,89.247,89.144,112.6]
[1646037728824,111.7,89.246,89.144,112.6]
[1646037729024,111.7,89.244,89.144,169.71056622]
[1646037729224,111.7,89.229,89.144,112.6]
[1646037729424,16.8508,89.248,89.144,112.6]
[1646037729425,16.8327,89.21,89.144,112.6]
[1646037729624,1.94109566,89.209,89.144,112.6]
[1646037730230,15.96597907,89.21,89.144,112.6]
[1646037730427,2.10488929,89.219,89.145,50.62330751]
[1646037731228,2.10488929,89.219,89.144,112.6]
[1646037731428,2.10488929,89.219,89.145,6.0]
[1646037731628,113.47934412,89.209,89.145,6.0]
[1646037731826,1.86197557,89.208,89.145,6.0]
[1646037732427,1.86197557,89.208,89.146,47.01228611]
[1646037732628,16.01,89.23,89.147,6.0]
[1646037732830,1.88937938,89.229,89.147,8.74678921]
[1646037733026,113.58937938,89.229,89.147,8.74678921]
[1646037733227,1.82551988,89.228,89.147,8.74678921]
[1646037733429,1.82551988,89.228,89.147,6.0]
[1646037734026,1.82551988,89.228,89.146,47.01228611]
[1646037734428,1.82551988,89.228,89.146,49.75907532]
[1646037737530,1.82551988,89.228,89.146,47.01228611]
[1646037738032,1.82551988,89.228,89.15,16.8282]
[1646037738429,1.82551988,89.228,89.15,19.57498921]
[1646037739031,23.4475,89.247,89.17,16.8229]
[1646037739229,1.75938256,89.238,89.171,46.99419407]
[1646037739431,1.75938256,89.238,89.171,49.74098328]
[1646037739732,113.45938256,89.238,89.172,2.74678921]
[1646037739930,1.84359451,89.237,89.171,46.99419407]
[1646037740730,1.84359451,89.237,89.171,49.74098328]
[1646037742134,1.68436436,89.246,89.172,4.484]